bitfinex-derivatives/quotes_SOLF0:USTF0_20251210
["timestamp","ask_amount","ask_price","bid_price","bid_amount"]
[1765389561914,0.05024987,136.71,136.69,6.63296474]
[1765389562320,3.21024987,136.71,136.69,6.63296474]
[1765389562614,3.21024987,136.71,136.69,0.04866474]
[1765389582728,3.21024987,136.71,136.69,6.63296474]
[1765389584324,11.49061988,136.78,136.69,0.04866474]
[1765389584625,102.3417,136.8,136.7,4.67942951]
[1765389584839,5.60466254,136.79,136.71,62.18]
[1765389585127,5.60466254,136.78,136.71,62.18]
[1765389585332,0.05391206,136.76,136.73,0.04716838]
[1765389586432,3.27,136.75,136.73,0.04716838]
[1765389589828,3.27,136.75,136.7,6.5836]
[1765389590833,3.27,136.75,136.71,0.05114311]
[1765389591034,3.27,136.74,136.71,0.05114311]
[1765389591231,3.27,136.74,136.71,6.63424311]
[1765389592130,3.27,136.74,136.71,0.05114311]
[1765389593735,3.27,136.75,136.71,0.05114311]
[1765389593939,3.32391206,136.76,136.71,0.05114311]
[1765389595528,3.32391206,136.76,136.74,6.5819]
[1765389595739,3.32391206,136.76,136.74,68.7419]
[1765389600246,3.32391206,136.76,136.72,6.5829]
[1765389600545,3.32391206,136.76,136.72,68.7429]
[1765389600953,3.27,136.75,136.71,62.21114311]
[1765389601138,3.27,136.75,136.71,0.05114311]
[1765389601439,3.27,136.74,136.71,0.05114311]
[1765389602347,0.05391206,136.76,136.71,0.05114311]
[1765389602546,3.32391206,136.76,136.71,0.05114311]
[1765389603446,3.32391206,136.76,136.74,6.5818]
[1765389603647,3.32391206,136.76,136.74,68.7418]
[1765389603848,3.32391206,136.76,136.74,62.16]
[1765389606141,3.32391206,136.76,136.71,0.05114311]
[1765389606539,3.32391206,136.76,136.71,6.63434311]
[1765389607135,3.11,136.75,136.71,0.05114311]
[1765389608338,3.11,136.72,136.71,0.05114311]
[1765389613556,3.27141997,136.73,136.71,0.05114311]
[1765389617457,0.05141997,136.73,136.71,6.63434311]
[1765389617755,3.27141997,136.73,136.71,6.63434311]
[1765389618857,3.27141997,136.73,136.71,0.05114311]
[1765389620647,3.22,136.72,136.71,0.05114311]
[1765389620850,3.22,136.72,136.65,84.14901514]
[1765389621061,3.22,136.7,136.65,84.14901514]
[1765389621550,3.22,136.68,136.59,102.4953]
[1765389621756,3.27586429,136.65,136.62,65.20187711]
[1765389621956,0.05586429,136.65,136.62,86.78078399]
[1765389622459,0.05586429,136.65,136.64,2.99501568]
[1765389623656,0.05586429,136.65,136.63,9.58211568]
[1765389624351,3.27586429,136.65,136.63,6.5871]
[1765389625652,0.05586429,136.65,136.63,9.58211568]
[1765389626353,3.27586429,136.65,136.62,83.78576831]
[1765389627048,3.27586429,136.65,136.62,90.37336831]
[1765389628462,0.05586429,136.65,136.63,6.5871]
[1765389629155,3.27586429,136.65,136.62,21.62576831]
[1765389629361,3.27586429,136.65,136.62,0.04686143]
[1765389631863,3.22,136.63,136.57,2.99501568]
[1765389632067,3.22,136.63,136.57,65.17501568]
[1765389632857,3.22,136.6,136.59,0.04631723]
[1765389633955,3.2,136.58,136.54,142.73048727]
[1765389634462,3.2,136.58,136.54,149.32188727]
[1765389634666,3.2,136.58,136.54,145.72550295]
[1765389635166,3.25386046,136.57,136.54,167.56307289]
[1765389635360,3.25386046,136.57,136.54,164.56805721]
[1765389635667,3.25386046,136.57,136.54,167.56307289]
[1765389635869,3.25386046,136.57,136.55,6.591]
[1765389639752,3.25386046,136.57,136.54,164.56805721]
[1765389640358,0.05386046,136.57,136.55,6.591]
[1765389640970,3.25386046,136.57,136.55,6.591]
[1765389641669,3.25386046,136.57,136.54,164.56805721]
[1765389642659,3.2,136.54,136.49,62.2]
[1765389642971,0.04990634,136.53,136.51,6.593]
[1765389646269,3.24990634,136.53,136.49,68.8138]
[1765389648273,3.24990634,136.53,136.49,90.43303745]
[1765389650775,3.24990634,136.53,136.5,6.5934]
[1765389654480,3.24990634,136.53,136.51,6.593]
[1765389656684,3.24990634,136.53,136.49,93.42775313]
[1765389657183,3.24990634,136.53,136.49,90.43273745]
[1765389657378,3.24990634,136.53,136.41,186.5811]
[1765389657379,3.24990634,136.53,136.47,6.5945]
[1765389657583,3.25099345,136.51,136.45,2.99501568]
[1765389657883,3.25099345,136.51,136.46,62.24]
[1765389659086,3.25099345,136.51,136.46,84.44648497]
[1765389659283,0.05099345,136.51,136.48,6.5943]
[1765389659487,0.05099345,136.51,136.49,2.99501568]
[1765389660181,0.05099345,136.51,136.46,187.03988497]
[1765389660386,0.05099345,136.51,136.49,2.99501568]
[1765389660976,0.05099345,136.51,136.5,68.8335]
[1765389662584,0.05099345,136.51,136.5,62.24]
[1765389662779,3.25099345,136.51,136.46,22.20648497]
[1765389662981,3.25099345,136.51,136.47,62.24]
[1765389663776,3.25099345,136.51,136.47,68.8349]
[1765389665088,0.05099345,136.51,136.49,9.58881568]
[1765389665292,3.31099345,136.51,136.47,65.23501568]
[1765389665691,3.31099345,136.51,136.48,6.5944]
[1765389665885,0.05099345,136.51,136.48,6.5944]
[1765389666086,3.31099345,136.51,136.48,6.5944]
[1765389666391,0.05099345,136.51,136.48,6.5944]
[1765389666595,0.05099345,136.51,136.49,9.58891568]
[1765389668096,0.05099345,136.51,136.5,6.5935]
[1765389668697,0.05099345,136.51,136.48,6.594]
[1765389672398,3.42099345,136.51,136.48,6.594]
[1765389672995,3.37,136.5,136.46,22.06417278]
[1765389673198,3.37,136.5,136.45,2.99501568]
[1765389673897,3.37,136.5,136.46,6.595]
[1765389674298,3.37,136.5,136.45,24.71068925]
[1765389674498,3.37,136.49,136.45,24.71068925]
[1765389675199,3.37,136.49,136.45,31.30628925]
[1765389675794,3.42099345,136.51,136.45,24.71068925]
[1765389676201,3.42099345,136.51,136.47,2.99501568]
[1765389677286,0.05099345,136.51,136.47,2.99501568]
[1765389677500,0.05099345,136.51,136.48,62.26]
[1765389677696,0.05099345,136.51,136.48,68.8544]
[1765389677905,0.05099345,136.51,136.49,2.99501568]
[1765389678292,0.05099345,136.51,136.49,9.58881568]
[1765389678598,0.05099345,136.51,136.49,2.99501568]
[1765389679603,0.05099345,136.51,136.49,71.84891568]
[1765389682807,0.05099345,136.51,136.49,68.8539]
[1765389684507,0.05099345,136.51,136.49,73.54565465]
[1765389684707,0.05099345,136.51,136.49,68.8539]
[1765389685009,3.42099345,136.51,136.49,62.26]
[1765389686912,0.05099345,136.51,136.49,62.26]
[1765389687600,0.05099345,136.51,136.49,68.8537]
[1765389693311,3.42099345,136.51,136.47,6.5945]
[1765389693518,3.42099345,136.51,136.47,68.8545]
[1765389693708,3.42099345,136.51,136.47,62.26]
[1765389694017,3.37,136.49,136.47,62.26]
[1765389694508,3.37,136.49,136.45,90.49355686]
[1765389694714,9.96449345,136.51,136.45,62.26]
[1765389694913,3.37099345,136.51,136.45,62.26]
[1765389695913,3.37099345,136.51,136.47,6.5949]
[1765389700730,3.32,136.5,136.47,6.5949]
[1765389701117,3.32,136.5,136.45,90.53602927]
[1765389701529,3.32,136.5,136.45,83.94052927]
[1765389702322,9.9135,136.5,136.46,6.5954]
[1765389702531,3.32,136.49,136.46,6.5954]
[1765389703933,3.32,136.49,136.45,83.94052927]
[1765389704226,9.914,136.49,136.45,83.94052927]
[1765389704435,3.32,136.48,136.45,62.26]
[1765389704635,3.37407372,136.48,136.45,62.26]
[1765389704837,3.32,136.46,136.45,62.26]
[1765389705037,3.32,136.46,136.37,125.50069737]
[1765389705234,3.32,136.46,136.41,62.26]
[1765389705235,0.04842592,136.43,136.41,62.26]
[1765389705536,0.04842592,136.43,136.41,84.68129007]
[1765389705935,0.04842592,136.43,136.42,6.5974]
[1765389711544,3.32,136.48,136.42,102.625]
[1765389711847,3.32,136.48,136.41,187.31439007]
[1765389711848,3.32,136.47,136.41,84.68129007]
[1765389712739,3.32,136.44,136.43,0.05210885]
[1765389714836,3.32,136.43,136.41,62.26]
[1765389716051,3.32,136.43,136.39,22.2552445]
[1765389716348,3.32,136.41,136.38,6.5992]
[1765389718650,3.37242012,136.42,136.38,6.5992]
[1765389720250,3.37242012,136.42,136.39,6.5987]
[1765389720845,0.05242012,136.42,136.39,6.5987]
[1765389721348,0.05242012,136.42,136.4,6.5982]
[1765389721555,3.32,136.47,136.41,62.28]
[1765389722452,4.69175465,136.5,136.41,62.28]
[1765389722453,3.32,136.44,136.41,62.28]
[1765389722645,3.32,136.44,136.41,62.33341634]
[1765389723657,0.04774315,136.45,136.41,62.33341634]
[1765389724246,0.04774315,136.45,136.42,6.5972]
[1765389724443,0.04774315,136.45,136.41,62.33341634]
[1765389725857,0.04774315,136.45,136.43,6.5969]
[1765389727155,3.05,136.51,136.44,4.69175465]
[1765389727355,3.05,136.51,136.46,4.69175465]
[1765389727852,3.05,136.51,136.47,6.5949]
[1765389728051,3.05,136.51,136.46,4.69175465]
[1765389728252,0.05572775,136.5,136.47,0.05428988]
[1765389729261,0.05572775,136.5,136.48,6.5942]
[1765389729466,0.05572775,136.5,136.48,11.28595465]
[1765389729656,0.05572775,136.5,136.49,62.28]
[1765389736562,0.05572775,136.5,136.48,6.5942]
[1765389736959,0.05572775,136.5,136.49,62.26]
[1765389737464,3.2,136.56,136.49,164.8296]
[1765389737664,3.2,136.56,136.5,4.69175465]
[1765389737864,3.2,136.56,136.5,11.28475465]
[1765389738564,3.24779552,136.54,136.52,0.0530728]
[1765389738768,3.25114578,136.54,136.52,0.0530728]
[1765389741774,0.05114578,136.54,136.52,0.0530728]
[1765389742669,0.05114578,136.54,136.52,3.0542777]
[1765389743074,0.05114578,136.54,136.53,6.592]
[1765389743376,3.2,136.53,136.42,205.2411]
[1765389743669,3.05235068,136.54,136.43,3.0012049]
[1765389743670,3.2,136.49,136.43,3.0012049]
[1765389743874,3.0012049,136.48,136.44,62.26]
[1765389744073,3.2,136.47,136.44,62.26]
[1765389744469,3.25645178,136.47,136.44,62.31031121]
[1765389745084,3.25645178,136.47,136.44,0.05031121]
[1765389745284,3.2,136.45,136.44,0.05031121]
[1765389745578,3.2,136.44,136.39,65.2612049]
[1765389746076,3.2,136.44,136.39,62.26]
[1765389746374,0.05423077,136.43,136.4,0.04831211]
[1765389750984,0.05423077,136.43,136.41,6.5976]
[1765389753188,3.25423077,136.43,136.4,0.04831211]
[1765389758784,3.25423077,136.43,136.4,6.64661211]
[1765389765300,3.25423077,136.43,136.4,0.04831211]
[1765389765903,3.16,136.41,136.4,0.04831211]
[1765389766200,3.16,136.42,136.4,0.04831211]
[1765389766400,3.16,136.42,136.4,6.64661211]
[1765389766587,0.05423077,136.43,136.4,0.04831211]
[1765389767889,0.05423077,136.43,136.41,68.8977]
[1765389768490,0.05423077,136.43,136.42,6.5974]
[1765389768800,0.05423077,136.43,136.42,9.60290416]
[1765389769899,3.16,136.49,136.42,3.00550416]
[1765389770089,3.16,136.49,136.44,3.00550416]
[1765389770289,3.16,136.49,136.45,62.3]
[1765389771001,3.21380685,136.48,136.46,0.0505232]
[1765389774796,3.16,136.47,136.46,0.0505232]
[1765389780008,9.7549,136.47,136.46,0.0505232]
[1765389781008,3.05931101,136.48,136.41,71.88290416]
[1765389781009,3.16,136.45,136.41,71.88290416]
[1765389781403,3.16,136.45,136.42,6.5973]
[1765389782112,3.20684748,136.45,136.42,6.64959663]
[1765389782706,0.04684748,136.45,136.43,9.60220416]
[1765389783114,3.20684748,136.45,136.43,9.60220416]
[1765389784218,3.20684748,136.45,136.42,0.05229663]
[1765389785620,3.20684748,136.45,136.42,6.64939663]
[1765389786217,0.04684748,136.45,136.42,3.05780079]
[1765389786609,0.04684748,136.45,136.44,6.5964]
[1765389786914,0.04684748,136.45,136.44,9.60190416]
[1765389788222,6.5944,136.49,136.44,9.60190416]
[1765389788223,3.08,136.49,136.45,6.5957]
[1765389788423,3.08,136.49,136.45,68.8757]
[1765389789526,3.13112846,136.48,136.46,0.046911]
[1765389790224,0.05112846,136.48,136.46,3.05241516]
[1765389791514,0.05112846,136.48,136.47,6.5949]
[1765389795328,3.31112846,136.48,136.46,3.05241516]
[1765389795518,3.31112846,136.48,136.46,0.046911]
[1765389803632,0.05112846,136.48,136.46,0.046911]
[1765389803829,0.05112846,136.48,136.46,3.05241516]
[1765389804335,0.05112846,136.48,136.47,6.5949]
[1765389805233,3.26,136.51,136.48,6.5943]
[1765389806140,3.30776319,136.51,136.48,6.5943]
[1765389807429,0.04776319,136.51,136.49,6.594]
[1765389808232,3.30776319,136.51,136.49,6.594]
[1765389809641,0.04776319,136.51,136.49,6.594]
[1765389809843,0.04776319,136.51,136.5,6.5935]
[1765389810540,0.04776319,136.51,136.5,68.8535]
[1765389811541,3.30776319,136.51,136.5,62.26]
[1765389812138,3.30776319,136.51,136.49,0.05497632]
[1765389820048,3.30776319,136.51,136.47,62.26]
[1765389820854,3.35,136.49,136.47,62.26]
[1765389821058,3.35,136.49,136.47,62.31110967]
[1765389822852,3.35,136.48,136.39,250.81352819]
[1765389823053,3.35,136.48,136.41,62.26]
[1765389823858,3.35,136.45,136.43,6.64472806]
[1765389826467,3.35,136.45,136.43,0.04782806]
[1765389837583,3.35,136.45,136.4,62.28]
[1765389838886,3.13,136.43,136.4,62.28]
[1765389839089,3.18380079,136.43,136.4,62.28]
[1765389839690,3.18380079,136.43,136.4,68.8783]
[1765389839888,3.18380079,136.43,136.4,62.28]
[1765389841084,3.18380079,136.43,136.41,6.5977]
[1765389841478,0.05380079,136.43,136.41,6.5977]
[1765389843290,0.05380079,136.43,136.42,6.5974]
[1765389843993,3.18380079,136.43,136.38,84.67434721]
[1765389845085,3.14,136.42,136.38,91.27354721]
[1765389846089,3.14,136.42,136.39,6.5988]
[1765389846390,3.19380079,136.43,136.38,89.36689058]
[1765389846886,3.19380079,136.43,136.38,22.39434721]
[1765389847085,3.19380079,136.43,136.36,62.3]
[1765389848582,3.14,136.42,136.37,6.5997]
[1765389849194,3.14,136.39,136.35,68.9006]
[1765389849393,0.05275276,136.38,136.35,68.9006]
[1765389852490,3.19275276,136.38,136.33,73.29394337]
[1765389852693,3.19275276,136.38,136.33,6.6014]
[1765389852995,3.19275276,136.38,136.32,62.3]
[1765389853192,3.14,136.36,136.28,4.69254337]
[1765389853398,3.18968006,136.33,136.29,62.3]
[1765389853693,3.18968006,136.33,136.29,84.77188861]
[1765389853893,0.04968006,136.33,136.3,6.6031]
[1765389855193,0.04968006,136.33,136.31,6.6026]
[1765389855388,3.26,136.39,136.32,4.69254337]
[1765389855697,3.26,136.39,136.33,62.3]
[1765389856499,0.04695891,136.37,136.35,0.05473674]
[1765389857295,0.04695891,136.37,136.36,4.69254337]
[1765389858497,0.04695891,136.37,136.35,6.65513674]
[1765389860596,0.04695891,136.37,136.36,6.6003]
[1765389862401,3.26,136.42,136.36,4.69254337]
[1765389862602,3.26,136.42,136.37,62.32]
[1765389863299,107.28444337,136.47,136.37,62.32]
[1765389863498,0.05028825,136.41,136.4,4.69254337]
[1765389863699,3.26,136.5,136.4,67.01254337]
[1765389864501,9.8545,136.48,136.42,6.5972]
[1765389864703,3.31583723,136.46,136.44,0.04891086]
[1765389870114,0.05583723,136.46,136.44,3.05416522]
[1765389870311,3.31583723,136.46,136.44,0.04891086]
[1765389871017,3.26,136.52,136.45,62.3]
[1765389871215,3.26,136.52,136.47,3.00525436]
[1765389871406,3.26,136.55,136.49,3.00525436]
[1765389871606,3.26,136.55,136.5,6.5933]
[1765389871810,3.26,136.55,136.5,28.46144263]
[1765389872003,3.26,136.55,136.5,6.5933]
[1765389872208,3.31211502,136.54,136.51,0.04969529]
[1765389872610,3.31211502,136.54,136.51,9.64784965]
[1765389872611,0.05211502,136.54,136.51,9.64784965]
[1765389874323,3.20211502,136.54,136.51,3.05494965]
[1765389875020,0.05211502,136.54,136.51,3.05494965]
[1765389876014,0.05211502,136.54,136.51,9.64784965]
[1765389877315,3.20211502,136.54,136.51,3.05494965]
[1765389877616,3.20211502,136.54,136.51,65.33494965]
[1765389878420,3.20211502,136.54,136.51,3.05494965]
[1765389878622,3.20211502,136.54,136.51,65.33494965]
[1765389879426,0.05211502,136.54,136.51,71.92784965]
[1765389879825,0.05211502,136.54,136.53,3.00525436]
[1765389880127,3.15,136.59,136.53,3.00525436]
[1765389880324,3.15,136.59,136.55,3.00525436]
[1765389880526,3.15,136.59,136.55,65.26525436]
[1765389880724,3.15,136.62,136.57,3.00525436]
[1765389881323,0.0536267,136.61,136.58,0.0520813]
[1765389881829,0.0536267,136.61,136.58,6.6414813]
[1765389882616,0.0536267,136.61,136.59,9.59425436]
[1765389882829,0.0536267,136.61,136.6,62.26]
[1765389885229,0.0536267,136.61,136.6,62.24]
[1765389888534,3.15,136.67,136.61,6.5881]
[1765389888718,3.15,136.67,136.62,3.00525436]
[1765389889028,3.15,136.67,136.63,6.5871]
[1765389889424,3.00525436,136.68,136.64,0.05628239]
[1765389889425,3.19956849,136.66,136.64,0.05628239]
[1765389890021,0.04956849,136.66,136.64,68.88288239]
[1765389892032,3.19956849,136.66,136.64,62.29628239]
[1765389892532,6.20482285,136.66,136.64,0.05628239]
[1765389892732,3.15,136.65,136.64,0.05628239]
[1765389894029,3.15,136.65,136.62,62.22]
[1765389894329,3.15,136.63,136.62,62.22]
[1765389896735,3.15,136.63,136.61,0.05265327]
[1765389897938,9.7372,136.63,136.61,0.05265327]
[1765389898237,3.15,136.62,136.61,0.05265327]
[1765389900634,6.15525436,136.62,136.61,0.05265327]
[1765389901229,3.15,136.59,136.52,102.5505]
[1765389901429,3.15,136.59,136.53,62.22]
[1765389902230,3.20437214,136.57,136.55,0.05403683]
[1765389902736,0.05437214,136.57,136.55,0.05403683]
[1765389903441,0.05437214,136.57,136.55,6.64513683]
[1765389903843,6.15525436,136.62,136.56,3.00525436]
[1765389904136,3.33,136.61,136.57,6.59]
[1765389904936,3.33,136.61,136.58,0.05590124]
[1765389904937,0.04937082,136.6,136.58,0.05590124]
[1765389905536,0.04937082,136.6,136.58,6.64540124]
[1765389905743,3.33,136.67,136.59,62.22]
[1765389906046,3.33,136.66,136.59,62.22]
[1765389906236,3.33,136.64,136.58,9.59455436]
[1765389906432,3.33,136.64,136.59,62.22]
[1765389906836,0.05471258,136.63,136.6,0.04835802]
[1765389907639,0.05471258,136.63,136.61,6.5881]
[1765389908438,0.05471258,136.63,136.6,0.04835802]
[1765389908643,3.38471258,136.63,136.6,0.04835802]
[1765389910945,0.05471258,136.63,136.61,6.5881]
[1765389914642,0.05471258,136.63,136.6,0.04835802]
[1765389914850,3.28471258,136.63,136.6,62.26835802]
[1765389916345,3.23,136.62,136.6,0.04835802]
[1765389918058,0.05471258,136.63,136.6,0.04835802]
[1765389919151,3.28471258,136.63,136.6,0.04835802]
[1765389920147,0.05471258,136.63,136.6,6.63695802]
[1765389920751,3.28471258,136.63,136.6,0.04835802]
[1765389920953,3.23,136.62,136.5,83.96981949]
[1765389921142,3.23,136.59,136.51,62.2]
[1765389921343,3.23,136.57,136.51,62.2]
[1765389921850,3.23,136.54,136.53,0.05386585]
[1765389922845,3.23,136.51,136.44,6.5962]
[1765389923047,3.23,136.51,136.44,62.22]
[1765389923248,3.23,136.51,136.44,164.8294]
[1765389923448,3.23,136.54,136.46,109.73386897]
[1765389923761,3.23,136.54,136.47,102.5879]
[1765389924057,0.04646213,136.51,136.49,0.04632858]
[1765389924258,0.04646213,136.51,136.5,62.22]
[1765389924959,3.23,136.57,136.5,62.22]
[1765389925658,3.23,136.57,136.5,68.8135]
[1765389925864,3.23,136.57,136.52,0.04623969]
[1765389925865,0.05233531,136.55,136.52,0.04623969]
[1765389926158,3.28233531,136.55,136.52,0.04623969]
[1765389931056,9.87363531,136.55,136.52,0.04623969]
[1765389931256,3.23,136.54,136.52,0.04623969]
[1765389935374,9.8217,136.54,136.52,0.04623969]
[1765389935669,3.06,136.53,136.52,0.04623969]
[1765389936067,3.06,136.5,136.46,62.0]
[1765389936265,3.06,136.5,136.43,143.81211906]
[1765389936865,3.06,136.48,136.43,150.40891906]
[1765389937063,3.10872101,136.47,136.44,0.05217694]
[1765389938564,3.06,136.46,136.44,0.05217694]
[1765389939866,3.06,136.45,136.44,0.05217694]
[1765389946578,3.10872101,136.47,136.44,0.05217694]
[1765389947164,0.04872101,136.47,136.44,0.05217694]
[1765389948879,0.04872101,136.47,136.45,6.5957]
[1765389959075,0.04872101,136.47,136.46,62.28]
[1765389959680,3.06,136.53,136.46,62.28]
[1765389960270,3.06,136.53,136.48,6.5944]
[1765389960783,6.592,136.54,136.48,6.5944]
[1765389960784,3.11388816,136.52,136.49,0.05454818]
[1765389963080,0.05388816,136.52,136.49,0.05454818]
[1765389963676,3.06,136.56,136.49,0.05454818]
[1765389963677,3.06,136.56,136.52,6.5923]
[1765389963887,3.06,136.59,136.52,62.28]
[1765389964594,3.40104777,136.57,136.54,0.05189431]
[1765389968394,3.40104777,136.57,136.48,102.5777]
[1765389968395,3.40104777,136.57,136.44,102.6075]
[1765389968698,3.40104777,136.57,136.45,62.26]
[1765389968699,3.35,136.57,136.45,62.26]
[1765389968901,3.07,136.55,136.48,102.5801]
[1765389969400,0.04626775,136.53,136.5,0.04966722]
[1765389969601,0.04626775,136.53,136.51,68.8529]
[1765389969791,0.04626775,136.53,136.51,62.26]
[1765389970896,0.04626775,136.53,136.51,68.853]
[1765389971897,3.07,136.55,136.51,68.853]
[1765389972899,0.04829957,136.54,136.51,68.853]
[1765389974908,3.11829957,136.54,136.51,62.26]
[1765389975302,0.04829957,136.54,136.51,62.26]
[1765389975502,3.11829957,136.54,136.51,68.853]
[1765389976706,0.04829957,136.54,136.51,68.853]
[1765389977309,0.04829957,136.54,136.52,6.5925]
[1765389979004,3.11829957,136.54,136.5,6.64266722]
[1765389979197,3.11829957,136.54,136.5,0.04966722]
[1765389980608,9.70989957,136.54,136.5,0.04966722]
[1765389980807,3.07,136.53,136.5,0.04966722]
[1765389982512,0.04829957,136.54,136.5,0.04966722]
[1765389984008,0.04829957,136.54,136.52,6.5925]
[1765389984909,0.04829957,136.54,136.53,62.26]
[1765389991707,0.04829957,136.54,136.53,68.852]
[1765389995911,3.00122683,136.59,136.53,62.26]
[1765389995912,3.07,136.59,136.53,62.26]
[1765389996221,3.07,136.59,136.55,3.00122683]
[1765389996906,0.05619503,136.58,136.57,6.5899]
[1765389998416,0.05619503,136.58,136.57,71.83112683]
[1765390000219,3.12619503,136.58,136.56,0.05361395]
[1765390000523,3.12619503,136.58,136.56,62.29361395]
[1765390003014,6.07122683,136.57,136.56,0.05361395]
[1765390003419,3.07,136.56,136.52,62.24]
[1765390004226,3.07,136.54,136.49,9.59502683]
[1765390004418,3.07,136.54,136.47,62.0]
[1765390004619,3.07,136.51,136.49,0.04813973]
[1765390004917,0.05274394,136.52,136.49,0.04813973]
[1765390005119,3.12274394,136.52,136.49,0.04813973]
[1765390006026,0.05274394,136.52,136.49,0.04813973]
[1765390006226,0.05274394,136.52,136.49,3.04936656]
[1765390006927,0.05274394,136.52,136.49,9.64326656]
[1765390008730,0.05274394,136.52,136.49,6.64203973]
[1765390009834,0.05274394,136.52,136.5,6.5934]
[1765390013125,3.12274394,136.52,136.49,0.04813973]
[1765390013433,3.07,136.51,136.49,0.04813973]
[1765390013632,6.07122683,136.5,136.49,0.04813973]
[1765390017323,3.07,136.5,136.49,0.04813973]
[1765390021227,3.12274394,136.52,136.49,0.04813973]
[1765390021430,0.05274394,136.52,136.5,3.00122683]
[1765390022128,0.05274394,136.52,136.5,9.59462683]
[1765390022531,3.07,136.58,136.53,3.00122683]
[1765390023736,0.04752938,136.57,136.54,0.04749323]
[1765390024332,6.36875621,136.57,136.54,0.04749323]
[1765390024523,12.95905621,136.57,136.54,0.04749323]
[1765390024722,3.32,136.56,136.54,0.04749323]
[1765390025528,0.04752938,136.57,136.54,0.04749323]
[1765390026536,0.04752938,136.57,136.55,3.00122683]
[1765390028839,0.04752938,136.57,136.54,68.89879323]
[1765390028840,0.04752938,136.57,136.54,65.30872006]
[1765390029038,3.11752938,136.57,136.54,0.04749323]
[1765390034045,0.04752938,136.57,136.54,0.04749323]
[1765390034749,0.04752938,136.57,136.55,9.59222683]
[1765390034949,3.07,136.62,136.55,3.00122683]
[1765390035138,3.07,136.62,136.57,3.00122683]
[1765390035342,3.07,136.62,136.58,62.24]
[1765390035953,3.07,136.59,136.55,62.24]
[1765390036946,3.07,136.59,136.56,0.05052308]
[1765390041842,3.07,136.59,136.56,6.64102308]
[1765390042045,3.07,136.6,136.56,6.64102308]
[1765390042338,3.07,136.6,136.56,0.05052308]
[1765390042645,3.11999643,136.61,136.57,3.00122683]
[1765390043358,0.04999643,136.61,136.59,3.00122683]
[1765390043649,0.04999643,136.61,136.6,62.24]
[1765390045451,0.04999643,136.61,136.6,83.99770687]
[1765390045647,0.04999643,136.61,136.6,62.24]
[1765390045956,3.07,136.64,136.61,6.5882]
[1765390046151,3.00122683,136.67,136.61,6.5882]
[1765390046345,3.07,136.66,136.61,3.00122683]
[1765390047053,3.12253979,136.65,136.62,0.05308913]
[1765390047955,3.12253979,136.65,136.62,6.64068913]
[1765390048553,3.12253979,136.65,136.62,0.05308913]
[1765390060066,9.70883979,136.65,136.62,0.05308913]
[1765390060253,3.36,136.63,136.54,4.6834316]
[1765390060455,3.36,136.63,136.52,107.2306316]
[1765390060659,3.36,136.63,136.53,62.2]
[1765390061267,3.36,136.58,136.57,0.04833151]
[1765390066666,3.36,136.58,136.55,6.5907]
[1765390066667,3.36,136.58,136.52,21.97699926]
[1765390066867,3.36,136.58,136.51,62.22]
[1765390067560,3.36,136.55,136.53,0.04791314]
[1765390068371,3.36,136.54,136.51,62.22]
[1765390068665,3.36,136.53,136.51,62.22]
[1765390069366,3.36,136.53,136.51,62.27351608]
[1765390071675,3.36,136.55,136.51,62.27351608]
[1765390072963,3.36,136.55,136.52,6.5924]
[1765390078665,3.40832532,136.56,136.52,6.5924]
[1765390078874,0.04832532,136.56,136.51,169.51264768]
[1765390079572,0.04832532,136.56,136.53,4.6834316]
[1765390079979,0.04832532,136.56,136.54,6.5912]
[1765390080174,0.04832532,136.56,136.55,62.24]
[1765390083181,0.04832532,136.56,136.55,68.8311]
[1765390083381,164.7028,136.64,136.55,68.3834316]
[1765390083382,3.36,136.64,136.55,68.3834316]
[1765390083578,3.36,136.62,136.55,66.9234316]
[1765390084574,0.05189711,136.6,136.57,0.04664776]
[1765390084974,0.05189711,136.6,136.58,6.5896]
[1765390085176,0.05189711,136.6,136.59,62.24]
[1765390085676,0.05189711,136.6,136.58,6.5896]